bitfinex/quotes_ETHUSD_20251025
["timestamp","ask_amount","ask_price","bid_price","bid_amount"]
[1761374708602,1e-08,3933.2,3933.1,16.77585489]
[1761374713915,0.001,3933.5,3933.4,3.04920979]
[1761374714113,0.001,3933.5,3933.4,13.61883121]
[1761374714318,0.001,3933.5,3933.4,14.02770792]
[1761374714688,0.001,3933.5,3933.4,14.12946332]
[1761374718020,1e-08,3934.0,3933.9,7.52186743]
[1761374718324,1e-08,3934.0,3933.9,12.27506743]
[1761374718507,1e-08,3934.0,3933.9,12.70936743]
[1761374718711,1e-08,3934.0,3933.9,12.0584132]
[1761374719613,0.001,3934.1,3934.0,4.60402204]
[1761374719812,0.001,3934.1,3934.0,5.06374146]
[1761374720013,0.001,3934.1,3934.0,5.03832204]
[1761374720508,0.001,3934.9,3934.4,4.60376361]
[1761374720715,0.6882,3934.9,3934.4,11.52305467]
[1761374721016,0.001,3934.9,3934.4,11.52305467]
[1761374721220,0.001,3934.9,3934.4,12.21125467]
[1761374722953,0.001,3934.9,3934.4,12.64555467]
[1761374724524,0.001,3934.9,3934.4,12.21125467]
[1761374724930,0.001,3934.9,3934.4,12.46575467]
[1761374725137,0.001,3934.9,3934.4,12.21125467]
[1761374726009,0.2214,3934.8,3934.4,12.21125467]
[1761374726211,0.4668,3934.5,3934.4,12.21125467]
[1761374727043,0.001,3934.5,3934.4,12.21125467]
[1761374727940,0.001,3934.5,3934.4,12.33845467]
[1761374728139,0.001,3934.5,3934.4,9.13945467]
[1761374728347,0.001,3934.5,3934.4,12.33845467]
[1761374730540,0.4668,3934.5,3934.4,12.33845467]
[1761374731359,0.2224,3934.9,3934.8,3.04830523]
[1761374731526,0.2224,3934.9,3934.8,11.52179629]
[1761374731862,0.2224,3934.9,3934.8,11.64899629]
[1761374732018,0.2224,3934.9,3934.8,11.88559629]
[1761374732220,0.2224,3934.9,3934.8,2.77802523]
[1761374732419,0.2224,3934.9,3934.8,6.24730523]
[1761374733146,0.2224,3934.9,3934.8,7.80250523]
[1761374734369,0.2224,3934.9,3934.8,8.71343063]
[1761374734769,0.001,3934.9,3934.8,8.71343063]
[1761374734957,0.001,3934.9,3934.8,11.52279629]
[1761374736372,0.001,3934.9,3934.8,15.24308735]
[1761374736666,0.001,3934.9,3934.8,11.52279629]
[1761374739570,0.001,3934.9,3934.8,8.32379629]
[1761374739770,0.001,3934.9,3934.8,5.51562492]
[1761374739978,0.001,3934.9,3934.8,4.60350523]
[1761374740180,0.001,3934.9,3934.8,7.80250523]
[1761374741668,0.001,3934.9,3934.8,7.80350523]
[1761374742272,0.001,3934.9,3934.8,7.93070523]
[1761374746397,0.001,3934.9,3934.8,8.84282492]
[1761374747961,0.001,3934.9,3934.8,9.07942492]
[1761374751301,0.001,3934.9,3934.8,2.46731969]
[1761374751508,0.001,3934.9,3934.8,4.7542]
[1761374751720,0.001,3934.9,3934.8,7.29562523]
[1761374754220,0.001,3934.9,3934.8,4.7542]
[1761374756668,0.001,3934.9,3934.8,1.5552]
[1761374756880,0.001,3934.9,3934.8,4.7542]
[1761374758485,0.1318,3934.9,3934.8,4.7542]
[1761374758885,0.1318,3934.9,3934.8,7.29562523]
[1761374759883,0.1318,3934.9,3934.8,4.7542]
[1761374760210,0.1318,3934.9,3934.8,7.29562523]
[1761374761422,0.1318,3934.9,3934.8,7.42282523]
[1761374764829,0.001,3934.9,3934.8,15.71698735]
[1761374765318,0.001,3934.9,3934.8,15.81871894]
[1761374772329,0.001,3934.9,3934.8,12.09842788]
[1761374773452,0.001,3934.9,3934.8,15.81871894]
[1761374774614,0.001,3934.9,3934.8,15.94591894]
[1761374774953,0.001,3934.9,3934.8,12.22562788]
[1761374780349,0.001,3934.9,3934.8,15.94591894]
[1761374780560,0.001,3934.9,3934.8,19.78491894]
[1761374780758,0.001,3934.9,3934.8,16.80783137]
[1761374786956,0.001,3934.9,3934.8,16.33393137]
[1761374788773,0.001,3934.9,3934.8,11.86743682]
[1761374788979,0.1373,3934.9,3934.8,11.86743682]
[1761374789375,0.001,3934.9,3934.8,11.86743682]
[1761374793582,0.001,3934.9,3934.8,12.33863682]
[1761374794180,0.001,3934.9,3934.8,14.16123271]
[1761374794393,0.001,3934.9,3934.8,12.33863682]
[1761374795902,0.001,3934.9,3934.8,12.21143682]
[1761374796986,0.001,3934.9,3934.8,12.46593682]
[1761374798603,0.001,3935.4,3935.3,3.04798233]
[1761374798902,0.001,3935.4,3935.3,17.92994814]
[1761374799104,0.001,3935.4,3935.3,18.36744814]
[1761374799276,0.001,3935.4,3935.3,16.67637688]
[1761374804180,0.1372,3936.4,3935.5,4.60305319]
[1761374804485,0.1372,3936.4,3935.6,9.62347123]
[1761374804716,0.1372,3936.4,3935.6,10.06097123]
[1761374805005,0.1372,3936.4,3935.6,10.29667123]
[1761374805301,0.1372,3936.4,3935.6,8.47218862]
[1761374805707,0.1372,3936.2,3935.6,8.47218862]
[1761374805896,0.1372,3936.2,3935.6,8.59938862]
[1761374807176,0.1372,3936.3,3935.6,8.59938862]
[1761374808607,0.1372,3936.2,3935.6,8.59938862]
[1761374810223,0.1372,3936.2,3935.6,11.99988862]
[1761374810409,0.1372,3936.0,3935.6,11.99988862]
[1761374811921,0.3631,3935.9,3935.6,11.99988862]
[1761374812294,0.001,3936.1,3935.6,11.99988862]
[1761374812295,0.3631,3935.8,3935.6,11.99988862]
[1761374813593,0.3641,3935.7,3935.6,11.99988862]
[1761374814123,0.001,3935.7,3935.6,11.99988862]
[1761374815728,0.3641,3935.7,3935.6,11.99988862]
[1761374817934,0.001,3935.7,3935.6,11.99988862]
[1761374818134,0.3641,3935.7,3935.6,11.99988862]
[1761374818780,2.54097319,3935.5,3934.9,1.82448261]
[1761374818981,2.54093894,3935.6,3934.7,0.1272]
[1761374818982,0.1272,3935.2,3934.7,0.1272]
[1761374819182,0.1272,3935.2,3934.8,3.217]
[1761374819335,0.2287,3935.1,3934.8,3.217]
[1761374819658,0.99190438,3935.1,3934.8,3.217]
[1761374819832,0.2287,3935.0,3934.8,3.217]
[1761374820469,0.2287,3935.0,3934.9,0.1272]
[1761374824865,0.2287,3935.4,3934.9,2.66855919]
[1761374825080,0.23,3935.3,3935.0,2.54123732]
[1761374825294,0.23,3935.3,3935.1,3.217]
[1761374825498,0.131,3935.3,3935.2,0.1272]
[1761374825992,0.23,3935.3,3935.2,0.1272]
[1761374830165,0.50709842,3935.3,3935.2,0.1272]
[1761374830977,0.23,3935.3,3935.2,0.1272]
[1761374832298,2.77110233,3935.3,3935.2,0.1272]
[1761374832487,2.77110233,3935.3,3935.2,2.7882]
[1761374833295,0.23,3935.3,3934.9,0.002]
[1761374833482,2.54129606,3935.0,3934.9,0.002]
[1761374833694,3.08526236,3935.0,3934.9,0.002]
[1761374833886,3.18426236,3935.0,3934.9,0.002]
[1761374836409,3.31146236,3935.0,3934.9,0.002]
[1761374843742,4.07477355,3935.0,3934.9,0.002]
[1761374848439,3.31146236,3935.0,3934.9,0.002]
[1761374849745,6.97271349,3935.0,3934.9,0.002]
[1761374849945,6.97271349,3935.0,3934.1,0.002]
[1761374849946,4.60389282,3934.2,3934.1,0.002]
[1761374850147,11.60419839,3934.2,3934.1,0.002]
[1761374850437,13.18514838,3934.2,3934.1,0.002]
[1761374850849,13.28696232,3934.2,3934.1,0.002]
[1761374858527,8.49476232,3934.2,3934.1,0.002]
[1761374858727,11.72876232,3934.2,3934.1,0.002]
[1761374859329,13.02876232,3934.2,3934.1,0.002]
[1761374860061,13.15596232,3934.2,3934.1,0.002]
[1761374866852,13.05414838,3934.2,3934.1,0.002]
[1761374867980,13.05277208,3934.2,3934.1,0.002]
[1761374871282,5.99772485,3934.2,3934.1,0.002]
[1761374871582,9.22672485,3934.2,3934.1,0.002]
[1761374872293,9.22772485,3934.2,3934.1,0.002]
[1761374872452,7.92772485,3934.2,3934.1,0.002]
[1761374874093,8.02572485,3934.2,3934.1,0.002]
[1761374876886,7.92772485,3934.2,3934.1,0.002]
[1761374882373,8.02572485,3934.2,3934.1,0.002]
[1761374882600,8.70792741,3934.2,3934.1,0.002]
[1761374890510,4.69772485,3934.2,3934.1,0.002]
[1761374890724,6.43777486,3934.2,3934.1,0.4463]
[1761374892936,6.43777486,3934.2,3934.1,0.002]
[1761374894726,6.43777486,3934.2,3934.1,0.4463]
[1761374895127,6.43777486,3934.2,3934.1,0.002]
[1761374895331,7.77634978,3934.2,3934.1,0.002]
[1761374896247,7.77634978,3934.2,3934.1,0.4463]
[1761374896539,7.77634978,3934.2,3934.1,0.002]
[1761374901240,7.77634978,3934.2,3934.1,0.4463]
[1761374901642,7.77634978,3934.2,3934.1,0.002]
[1761374905761,7.77881896,3934.2,3934.1,0.002]
[1761374907358,7.77881896,3934.2,3934.1,0.4463]
[1761374907662,7.77881896,3934.2,3934.1,0.6633]
[1761374907862,4.55581896,3934.2,3934.1,0.6633]
[1761374908049,3.21724404,3934.2,3934.1,0.6633]
[1761374910038,0.67543122,3934.2,3934.1,0.6633]
[1761374910254,3.21724404,3934.2,3934.1,0.6633]
[1761374911327,0.1272,3934.4,3934.1,0.6633]
[1761374911548,0.1272,3934.4,3934.2,0.4443]
[1761374911942,2.6688898,3934.4,3934.2,0.4443]
[1761374912536,0.1272,3934.4,3934.2,0.4443]
[1761374912761,0.001,3934.5,3934.2,0.4443]
[1761374912762,2.66987032,3934.5,3934.2,0.4443]
[1761374913131,0.1282,3934.5,3934.2,0.4443]
[1761374913536,2.66983338,3934.5,3934.2,0.4443]
[1761374918008,0.001,3934.5,3934.2,0.4443]
[1761374927208,0.001,3934.5,3934.3,0.76334809]
[1761374927805,2.54262807,3934.5,3934.4,0.4475]
[1761374928470,2.54262807,3934.5,3934.3,0.1272]
[1761374928674,2.54262807,3934.5,3934.3,0.5747]
[1761374929109,3.05104134,3934.5,3934.4,0.76330925]
[1761374930183,2.54262807,3934.5,3934.4,0.76330925]
[1761374936201,2.54262807,3934.5,3934.4,1.21080925]
[1761374937082,0.001,3934.5,3934.4,1.21080925]
[1761374942411,2.54261901,3934.5,3934.4,1.21080925]
[1761374943502,0.001,3934.5,3934.4,1.21080925]
[1761374946426,0.001,3934.5,3934.4,0.4495]
[1761374946731,0.001,3934.5,3934.4,3.88164625]
[1761374946895,0.001,3934.5,3934.4,5.43684625]
[1761374951529,0.001,3934.5,3934.4,5.94372625]
[1761374951897,0.001,3934.5,3934.4,9.15072625]
[1761374956714,0.001,3934.5,3934.4,12.98872625]
[1761374960833,0.001,3934.5,3934.4,9.33422625]
[1761374961155,0.001,3934.5,3934.4,12.03134625]
[1761374961444,0.001,3934.5,3934.4,12.46204625]
[1761374961646,0.001,3934.5,3934.4,5.42004625]
[1761374961946,0.001,3934.5,3934.4,3.207]
[1761374965946,0.001,3934.5,3934.4,0.002]
[1761374966137,0.001,3934.5,3934.4,3.207]
[1761374967770,0.001,3934.5,3934.4,0.002]
[1761374967771,0.1003,3934.5,3934.4,0.002]
[1761374968066,0.1003,3934.5,3934.4,3.207]
[1761374968237,0.001,3934.5,3934.4,3.207]
[1761374971366,0.001,3934.5,3934.4,3.6377]
[1761374972066,0.001,3934.5,3934.4,3.7649]
[1761374972263,0.001,3934.5,3934.4,3.3342]
[1761374974053,0.001,3934.5,3934.4,6.30658361]
[1761374975239,0.001,3934.5,3934.4,3.3342]
[1761374980490,0.1003,3934.5,3934.4,0.002]
[1761374980672,0.36448119,3934.5,3934.4,0.002]
[1761374980983,0.36448119,3934.5,3934.4,3.205]
[1761374986693,0.1003,3934.5,3934.4,3.205]
[1761374993609,2.64191901,3934.5,3934.4,3.205]
[1761374995606,0.1003,3934.5,3934.4,3.205]
[1761374998618,2.64191901,3934.5,3934.4,3.205]
[1761375002594,0.1003,3934.5,3934.4,3.205]
[1761375003202,0.001,3934.5,3934.4,3.205]
[1761375003615,0.1003,3934.5,3934.4,3.205]
[1761375004029,0.001,3934.5,3934.4,3.205]
[1761375004817,2.54261901,3934.5,3934.4,3.205]
[1761375005025,3.07367454,3934.5,3934.4,3.205]
[1761375005644,0.53205553,3934.5,3934.4,3.205]
[1761375016449,0.001,3934.5,3934.4,3.205]
[1761375017024,2.54261901,3934.5,3934.4,3.205]
[1761375017548,0.001,3934.5,3934.4,3.205]
[1761375022769,2.54261901,3934.5,3934.4,3.205]
[1761375025070,2.54261901,3934.5,3934.4,0.002]
[1761375025374,3.75009149,3934.5,3934.4,0.002]
[1761375027164,3.84939149,3934.5,3934.4,0.002]
[1761375030187,7.05239149,3934.5,3934.4,0.002]
[1761375033255,7.73768051,3934.5,3934.4,0.002]
[1761375035490,7.05239149,3934.5,3934.4,0.002]
[1761375039199,7.05105096,3934.5,3934.4,0.002]
[1761375046804,6.95175096,3934.5,3934.4,0.002]
[1761375050617,7.40805096,3934.5,3934.4,0.002]
[1761375054343,8.09288933,3934.5,3934.4,0.002]
[1761375056450,8.19218933,3934.5,3934.4,0.002]
[1761375056634,8.19312792,3934.5,3934.4,0.002]
[1761375057233,7.50735096,3934.5,3934.4,0.002]
[1761375062982,8.42119365,3934.5,3934.4,0.002]
[1761375066390,7.96489365,3934.5,3934.4,0.002]
[1761375070491,7.96489365,3934.5,3934.4,0.142]
[1761375071370,7.86559365,3934.5,3934.4,0.142]
[1761375072077,7.96489365,3934.5,3934.4,0.142]
[1761375085305,7.55793096,3934.5,3934.4,0.142]
[1761375086806,11.28347638,3934.5,3934.4,0.142]
[1761375088660,13.96047638,3934.5,3934.4,0.142]
[1761375088865,11.28347638,3934.5,3934.4,0.142]
[1761375090825,11.88347638,3934.5,3934.4,0.142]
[1761375094370,11.78417638,3934.5,3934.4,0.142]
[1761375100183,14.46117638,3934.5,3934.4,0.142]
[1761375100360,11.78417638,3934.5,3934.4,0.142]
[1761375101166,14.80641196,3934.5,3934.4,0.142]
[1761375101367,14.80641196,3934.5,3934.1,0.002]
[1761375101368,7.28089282,3934.2,3934.1,0.002]
[1761375101689,7.28089282,3934.2,3934.0,0.002]
[1761375101690,7.28095743,3934.1,3934.0,0.002]
[1761375101971,7.92812813,3934.1,3934.0,0.002]
[1761375102531,8.02996099,3934.1,3934.0,0.002]
[1761375102738,10.3777057,3934.1,3934.0,0.002]
[1761375103238,11.74935003,3934.1,3934.0,0.002]
[1761375105473,10.3777057,3934.1,3934.0,0.002]
[1761375106668,11.74935003,3934.1,3934.0,0.002]
[1761375107374,10.3777057,3934.1,3934.0,0.002]
[1761375116388,10.37763339,3934.1,3934.0,0.002]
[1761375118703,4.09720666,3933.9,3933.8,1e-08]
[1761375118895,17.89070137,3933.9,3933.8,1e-08]
[1761375119500,17.98630137,3933.9,3933.8,1e-08]
[1761375119701,21.61624679,3933.9,3933.8,1e-08]
[1761375121703,17.89070137,3933.9,3933.8,1e-08]
[1761375123309,21.61624679,3933.9,3933.8,1e-08]
[1761375125214,20.70322652,3933.9,3933.8,1e-08]
[1761375129196,22.07487085,3933.9,3933.8,1e-08]
[1761375129395,18.34932543,3933.9,3933.8,1e-08]
[1761375129928,18.35032543,3933.9,3933.8,1e-08]
[1761375131332,16.9786811,3933.9,3933.8,1e-08]
[1761375131714,20.70422652,3933.9,3933.8,1e-08]
[1761375131914,20.80322652,3933.9,3933.8,1e-08]
[1761375132426,20.70422652,3933.9,3933.8,1e-08]
[1761375135236,4.6042159,3933.7,3933.6,1e-08]
[1761375135438,5.15201429,3933.7,3933.6,1e-08]
[1761375135647,5.27921429,3933.7,3933.6,1e-08]
[1761375137762,5.27921429,3933.7,3933.6,0.45470001]
[1761375140449,7.95621429,3933.7,3933.6,0.45470001]
[1761375140793,10.44721332,3933.7,3933.6,1e-08]
[1761375142677,11.82062879,3933.7,3933.6,1e-08]
[1761375146487,11.82062879,3933.7,3933.6,0.45470001]
[1761375146784,16.29327573,3933.7,3933.6,0.45470001]
[1761375149191,16.29427573,3933.7,3933.6,0.45470001]
[1761375152890,16.89427573,3933.7,3933.6,0.45470001]
[1761375162113,16.89590955,3933.7,3933.6,0.45470001]
[1761375165428,16.89590955,3933.7,3933.6,1e-08]
[1761375174250,3.04927442,3933.3,3933.2,0.002]
[1761375174446,11.57528101,3933.3,3933.2,0.002]
[1761375174641,11.70248101,3933.3,3933.2,0.002]
[1761375176057,11.70248101,3933.3,3933.2,0.4464]
[1761375181548,11.70248101,3933.3,3933.2,0.002]
[1761375182235,11.70248101,3933.3,3933.2,0.4392]
[1761375188365,11.70248101,3933.3,3933.2,0.002]
[1761375190067,11.70248101,3933.3,3933.2,0.4536]
[1761375190962,13.25768101,3933.3,3933.2,0.002]
[1761375192224,14.17338378,3933.3,3933.2,0.002]
[1761375192657,14.17338378,3933.3,3933.2,0.4536]
[1761375194584,14.17338378,3933.3,3933.2,0.002]
[1761375199010,2.542653,3932.9,3932.8,0.002]
[1761375199289,8.76039977,3932.9,3932.8,0.002]
[1761375199787,8.98689977,3932.9,3932.8,0.4536]
[1761375200087,8.98689977,3932.9,3932.8,0.002]
[1761375201208,8.98689977,3932.9,3932.8,0.4536]
[1761375201407,10.93658127,3932.9,3932.8,0.4536]
[1761375202107,10.02146671,3932.9,3932.8,0.4536]
[1761375203899,6.82346671,3932.9,3932.8,0.4536]
[1761375204102,10.02146671,3932.9,3932.8,0.4536]
[1761375204502,10.70721229,3932.9,3932.8,0.4536]
[1761375204810,8.75753079,3932.9,3932.8,0.4536]
[1761375205379,8.53103079,3932.9,3932.8,0.4536]
[1761375206680,7.84528521,3932.9,3932.8,0.4536]
[1761375208908,11.69970793,3932.9,3932.8,0.4536]
[1761375209097,3.21928521,3932.9,3932.8,0.4536]
[1761375210002,3.21928521,3932.9,3932.8,1.1377]
[1761375220546,0.67663221,3932.9,3932.8,1.1377]
[1761375220703,0.001,3933.0,3932.8,1.1377]
[1761375220887,0.001,3933.0,3932.9,0.5876]
[1761375221390,0.001,3933.0,3932.9,0.68940824]
[1761375222687,2.54358835,3933.0,3932.9,0.68940824]
[1761375222909,2.54358835,3933.0,3932.9,0.56220824]
[1761375226241,3.11646555,3933.0,3932.9,0.10180824]
[1761375226413,2.542653,3932.9,3932.8,0.002]
[1761375227444,2.985653,3932.9,3932.8,0.002]
[1761375227811,3.53357236,3932.9,3932.8,0.002]
[1761375228012,5.14524526,3932.9,3932.8,0.002]
[1761375229642,8.42946798,3932.9,3932.8,0.002]
[1761375232339,8.87246798,3932.9,3932.8,0.002]
[1761375232658,8.42946798,3932.9,3932.8,0.002]
[1761375232858,8.55666798,3932.9,3932.8,0.002]
[1761375237477,8.99966798,3932.9,3932.8,0.002]
[1761375238694,8.55666798,3932.9,3932.8,0.002]
[1761375238993,8.99966798,3932.9,3932.8,0.002]
[1761375240163,9.00014311,3932.9,3932.8,0.002]
[1761375241668,11.06222311,3932.9,3932.8,0.002]
[1761375245491,11.97513663,3932.9,3932.8,0.002]
[1761375247261,11.06222311,3932.9,3932.8,0.002]
[1761375252185,11.97513663,3932.9,3932.8,0.002]
[1761375256115,11.53213663,3932.9,3932.8,0.002]
[1761375256408,14.72913663,3932.9,3932.8,0.002]
[1761375257380,13.81622311,3932.9,3932.8,0.002]
[1761375261740,10.11234311,3932.9,3932.8,0.002]
[1761375262045,13.30934311,3932.9,3932.8,0.4712]
[1761375263609,13.30934311,3932.9,3932.8,0.002]
[1761375264736,13.30934311,3932.9,3932.8,0.4712]
[1761375266040,10.11234311,3932.9,3932.8,0.002]
[1761375266351,11.69767021,3932.9,3932.8,0.4712]
[1761375268353,10.14247021,3932.9,3932.8,0.4712]
[1761375269862,10.14292331,3932.9,3932.8,0.4712]
[1761375270685,6.41570059,3932.9,3932.8,0.4712]
[1761375275606,6.41470059,3932.9,3932.8,0.4712]
[1761375283809,6.41470059,3932.9,3932.8,0.002]
[1761375283987,6.41470059,3932.9,3932.8,0.4689]
[1761375287101,6.41470059,3932.9,3932.8,0.002]
[1761375291380,7.10076008,3932.9,3932.8,0.002]
[1761375292386,12.92770816,3932.9,3932.8,0.002]
[1761375292581,13.37070816,3932.9,3932.8,0.002]
[1761375293012,12.68464867,3932.9,3932.8,0.002]
[1761375295012,8.21197362,3932.9,3932.8,0.002]
[1761375295181,8.45489347,3932.9,3932.8,0.002]
[1761375296303,7.76897362,3932.9,3932.8,0.002]
[1761375299522,8.21197362,3932.9,3932.8,0.002]
[1761375300496,9.76717362,3932.9,3932.8,0.002]
[1761375301021,9.99367362,3932.9,3932.8,0.002]
[1761375306339,9.76717362,3932.9,3932.8,0.002]
[1761375311648,10.27405362,3932.9,3932.8,0.002]
[1761375312153,10.70605362,3932.9,3932.8,0.002]
[1761375313325,11.61896891,3932.9,3932.8,0.002]
[1761375313660,10.70605362,3932.9,3932.8,0.002]
[1761375323431,12.07872546,3932.9,3932.8,0.002]
[1761375323750,10.70605362,3932.9,3932.8,0.002]
[1761375324280,12.07872546,3932.9,3932.8,0.002]
[1761375332651,15.8078357,3932.9,3932.8,0.002]
[1761375333180,15.3648357,3932.9,3932.8,0.002]
[1761375333774,15.8078357,3932.9,3932.8,0.002]
[1761375335243,15.3648357,3932.9,3932.8,0.002]
[1761375337262,13.99216386,3932.9,3932.8,0.002]
[1761375338280,15.3648357,3932.9,3932.8,0.002]
[1761375343299,13.99216386,3932.9,3932.8,0.002]
[1761375361186,13.99216386,3932.9,3932.8,0.4754]
[1761375361391,13.99216386,3932.9,3932.8,0.002]
[1761375362623,14.42526386,3932.9,3932.8,0.002]
[1761375363004,13.99216386,3932.9,3932.8,0.002]
[1761375366449,13.56016386,3932.9,3932.8,0.002]
[1761375379358,14.00316386,3932.9,3932.8,0.002]
[1761375380465,13.56016386,3932.9,3932.8,0.002]
[1761375390512,13.01131627,3932.9,3932.8,0.002]
[1761375390700,13.55987965,3932.9,3932.8,0.002]
[1761375391383,14.00287965,3932.9,3932.8,0.002]
[1761375394208,13.45431627,3932.9,3932.8,0.002]
[1761375394399,14.00286488,3932.9,3932.8,0.002]
[1761375394710,14.74807585,3932.9,3932.8,0.002]
[1761375396323,14.30507585,3932.9,3932.8,0.002]
[1761375409959,14.30307585,3932.9,3932.8,0.4714]
[1761375410154,11.10907585,3932.9,3932.8,0.4714]
[1761375410360,14.30207585,3932.9,3932.8,0.4714]
[1761375410866,5.28048161,3932.9,3932.8,0.002]
[1761375411043,3.21840161,3932.9,3932.8,0.4714]
[1761375411366,7.96660161,3932.9,3932.8,0.4714]
[1761375413334,8.65162472,3932.9,3932.8,0.4714]
[1761375414243,13.3552833,3932.9,3932.8,0.002]
[1761375427792,15.11794418,3932.9,3932.8,0.002]
[1761375431338,15.62482418,3932.9,3932.8,0.002]
[1761375431629,16.06782418,3932.9,3932.8,0.002]
[1761375433235,15.62482418,3932.9,3932.8,0.002]
[1761375433452,15.1534637,3932.9,3932.8,0.002]
[1761375454688,14.40828325,3932.9,3932.8,0.002]
[1761375460888,13.96528325,3932.9,3932.8,0.002]
[1761375462426,4.60499163,3932.5,3932.4,0.4734]
[1761375462726,9.38572834,3932.5,3932.4,0.4734]
[1761375463397,8.47274024,3932.5,3932.4,0.4734]
[1761375464630,8.47217587,3932.5,3932.4,0.4734]
[1761375464929,12.20131663,3932.5,3932.4,0.4734]
[1761375467626,12.20131663,3932.5,3932.4,0.002]
[1761375479169,12.20131663,3932.5,3932.4,0.4652]
[1761375482979,13.41701329,3932.5,3932.4,0.4652]
[1761375483169,13.41701329,3932.5,3932.4,0.002]
[1761375499402,17.14615405,3932.5,3932.4,0.002]
[1761375501501,18.51563621,3932.5,3932.4,0.002]
[1761375507013,18.95863621,3932.5,3932.4,0.002]
[1761375508983,18.51563621,3932.5,3932.4,0.002]
[1761375509190,17.46195405,3932.5,3932.4,0.002]
[1761375509520,4.60525031,3932.1,3932.0,0.002]
[1761375509707,12.07337531,3932.1,3932.0,0.002]
[1761375513317,13.44174282,3932.1,3932.0,0.002]
[1761375516936,14.18895579,3932.1,3932.0,0.002]
[1761375517242,12.82058828,3932.1,3932.0,0.002]
[1761375517538,14.6673238,3932.1,3932.0,0.002]
[1761375519238,14.7945238,3932.1,3932.0,0.002]
[1761375529353,15.2375238,3932.1,3932.0,0.002]
[1761375529521,15.6895238,3932.1,3932.0,0.002]
[1761375529923,15.2375238,3932.1,3932.0,0.002]
[1761375531130,3.05056783,3931.3,3931.2,0.452]
[1761375531461,9.02846159,3931.3,3931.2,0.452]
[1761375538248,9.02846159,3931.3,3931.2,0.002]
[1761375539063,8.34475207,3931.3,3931.2,0.002]
[1761375541076,8.47195207,3931.3,3931.2,0.002]
[1761375542488,8.47195207,3931.3,3931.2,0.452]
[1761375543894,8.34475207,3931.3,3931.2,0.452]
[1761375544094,9.15623837,3931.3,3931.2,0.452]
[1761375544304,5.45835837,3931.3,3931.2,0.452]
[1761375544993,8.64935837,3931.3,3931.2,1.1254]
[1761375546298,5.45835837,3931.3,3931.2,1.1254]
[1761375546462,8.64935837,3931.3,3931.2,1.1254]
[1761375547799,3.90315837,3931.3,3931.2,1.1254]
[1761375548003,6.40987207,3931.3,3931.2,1.1254]
[1761375549293,7.09415837,3931.3,3931.2,1.1254]
[1761375550110,6.40987207,3931.3,3931.2,1.1254]
[1761375550979,3.21887207,3931.3,3931.2,1.1254]
[1761375564711,2.67088783,3931.3,3931.2,1.1254]
[1761375564908,3.21837342,3931.3,3931.2,1.1254]
[1761375574732,0.67468559,3931.3,3931.2,1.1254]
[1761375574933,0.54748559,3931.3,3931.2,1.1254]
[1761375575134,3.09117342,3931.3,3931.2,1.1254]
[1761375575334,0.54748559,3931.3,3931.2,1.1254]
[1761375575534,2.54365667,3931.4,3931.2,1.1254]
[1761375575734,2.54365667,3931.4,3931.3,0.4565]
[1761375576065,3.09151323,3931.4,3931.3,0.4565]
[1761375576757,3.09151323,3931.4,3931.3,1.1319]
[1761375580333,3.09132759,3931.4,3931.3,1.1319]
[1761375583573,3.09132759,3931.4,3931.3,1.1339]
[1761375601520,3.09132759,3931.4,3931.3,1.14143687]
[1761375601521,0.54767092,3931.4,3931.3,1.14143687]
[1761375601726,0.001,3931.6,3931.3,1.14143687]
[1761375601727,0.001,3931.6,3931.3,1.26863687]
[1761375601894,0.001,3931.6,3931.4,0.4386]
[1761375602205,0.001,3931.6,3931.5,0.1272]
[1761375602407,0.001,3931.6,3931.5,0.89109622]
[1761375602408,2.54449374,3931.6,3931.5,0.89109622]
[1761375602612,2.54449374,3931.6,3931.5,0.76389622]
[1761375604012,3.00529374,3931.6,3931.5,0.76389622]
[1761375607613,2.54449374,3931.6,3931.5,0.76389622]
[1761375609917,0.001,3931.6,3931.5,1.20689622]
[1761375610121,2.54449374,3931.6,3931.5,1.20689622]
[1761375610715,0.001,3931.6,3931.5,1.20689622]
[1761375611222,2.54449374,3931.6,3931.5,1.20689622]
[1761375618737,2.54449374,3931.6,3931.5,0.76389622]
[1761375619228,2.54449374,3931.6,3931.5,0.76589622]
[1761375626653,4.06244973,3931.6,3931.5,0.76589622]
[1761375632042,4.06244973,3931.6,3931.5,0.002]
[1761375649792,3.61364973,3931.6,3931.5,0.002]
[1761375649996,6.28114281,3931.6,3931.5,0.002]
[1761375650166,6.28114281,3931.6,3931.5,0.4589]
[1761375650367,6.28114281,3931.6,3931.5,0.002]
[1761375651500,6.28114281,3931.6,3931.5,0.4589]
[1761375652091,6.28114281,3931.6,3931.5,0.002]
[1761375664252,6.28114281,3931.6,3931.5,0.4609]
[1761375664454,6.28114281,3931.6,3931.5,0.9293]
[1761375664656,0.54864907,3931.6,3931.5,0.9293]
[1761375664820,3.09214281,3931.6,3931.5,0.9293]
[1761375666773,3.09214281,3931.6,3931.5,0.4609]
[1761375670975,3.09214281,3931.6,3931.5,0.9137]
[1761375673056,3.09237911,3931.6,3931.5,0.9137]
[1761375675471,3.09237911,3931.6,3931.5,0.4609]
[1761375675973,3.09237911,3931.6,3931.5,0.9137]
[1761375679188,2.54449374,3931.6,3931.5,0.9137]
[1761375681489,2.54449374,3931.6,3931.5,0.4609]
[1761375681490,3.52154625,3931.6,3931.5,0.4609]
[1761375682406,3.09234625,3931.6,3931.5,0.4609]
[1761375682890,3.52154625,3931.6,3931.5,0.4609]
[1761375683259,3.09234625,3931.6,3931.5,0.4609]
[1761375686968,3.52154625,3931.6,3931.5,0.4609]